Cogmind - Beta 13 @@@ ROGUE MODE // 2024.08.06 @ 01:28:32 Player: harambe Result: Destroyed by Y-45 Defender with Heavy Assault Rifle Performance ------------- Evolutions (2) 1000 Regions Visited (3) 600 Robots Destroyed (30) 150 Value Destroyed (947) 947 Prototype IDs (1) 20 Alien Tech Used (0) 0 Bonus (109) 109 TOTAL SCORE: 2826 Bonus ------- High Alert Combat Kills 109 Cogmind --------- Core Integrity 0/550 Matter 288/300 Energy 3/100 System Corruption 0% Temperature Cool (15) Movement Core (50) Location -8/Materials Parts ------- > --- POWER (1) -------- (None) > --- PROPULSION (5) --- (None) > --- UTILITY (3) ------ (None) > --- WEAPON (2) ------- Beam Rifle > --- INVENTORY (5) ---- Improved Ion Engine Heat Sink Improved Light Armor Plating Rocket Launcher Peak State ------------ > --- POWER ------------ Light Ion Engine > --- PROPULSION ------- Flight Unit Flight Unit Flight Unit Cesium-ion Thruster > --- UTILITY ---------- Heat Sink Small Storage Unit Propulsion Shielding > --- WEAPON ----------- Heavy EM Shotgun Spear > --- INVENTORY -------- Improved Ion Engine Heat Sink Improved Light Armor Plating Improved Light Armor Plating Beam Rifle Heavy Assault Rifle Light Cannon Rocket Launcher [Rating: 19] Favorites ----------- Power Light Ion Engine Engine Light Ion Engine Power Core Light Nuclear Core Propulsion Flight Unit Leg Aluminum Leg Wheel Compact Wheel Flight Unit Flight Unit Utility Small Storage Unit Device Sensor Array Storage Small Storage Unit Protection Propulsion Shielding Weapon Medium Laser Energy Gun Medium Laser Ballistic Gun Light Assault Rifle Ballistic Cannon Light Cannon Piercing Weapon Spear Build | -11 -10 -9 -8 ------- Run | Yrd Mat Mat Mat Slots Evolved 4 | . . 2 2 Power . | . . . . Propulsion 3 | . . 2 1 Utility 1 | . . . 1 Weapon . | . . . . Parts Attached 45 | . 8 18 19 Power 7 | . 2 2 3 Engine 5 | . 2 . 3 Core 2 | . . 2 . Reactor . | . . . . Propulsion 19 | . 3 11 5 Treads . | . . . . Leg . | . . . . Wheel 3 | . 3 . . Hover . | . . . . Flight 16 | . . 11 5 Utility 9 | . 3 2 4 Device 4 | . 2 . 2 Storage 3 | . 1 2 . Processor . | . . . . Hackware . | . . . . Protection 2 | . . . 2 Artifact . | . . . . Weapon 10 | . . 3 7 Energy Gun 4 | . . 1 3 Energy Cannon . | . . . . Ballistic Gun 4 | . . 2 2 Ballistic Cannon 1 | . . . 1 Launcher . | . . . . Special Weapon . | . . . . Impact Weapon . | . . . . Slashing Weapon . | . . . . Piercing Weapon 1 | . . . 1 Special Melee Weapon . | . . . . Unidentified Prototypes 1 | . . . 1 Parts Lost 26 | . 1 2 23 Power 3 | . . . 3 Propulsion 12 | . 1 2 9 Utility 5 | . . . 5 Weapon 6 | . . . 6 Highest Loss Streak 12 | . 1 2 12 To Critical Strikes . | . . . . Average Slot Usage (%) 84 | . 91 94 66 Engine 7 | . 14 3 4 Core 3 | . . 7 2 Leg 3 | . 12 . . Wheel 4 | . 15 . . Flight 21 | . . 38 23 Device 8 | . 6 11 6 Storage 11 | . 14 11 8 Protection 2 | . . . 8 Energy Gun 10 | . 14 11 5 Ballistic Gun 9 | . 14 11 4 Naked Turns . | . . . . Heaviest Build 29 | 11 29 16 17 Greatest Support 26 | 20 26 16 20 Greatest Overweight (x) 3 | . 1 1 3 Average Overweight (x) . | . . . . Largest Inventory Capacity 15 | . 15 15 8 Average Capacity 8 | . 8 8 7 Most Carried 8 | . 8 8 8 Average Carried 6 | . 6 7 5 Final Capacity 15 | 8 15 8 5 Final Carried 8 | 6 8 8 4 Class Distribution -------------------- 42% | Mutant 21% | Sprinter 20% | Scavenger-Sprinter 15% | Scavenger-Mutant Dominant Class ---------------- Mutant | -10/Materials Sprinter | -9/Materials Scavenger-Sprinter | -8/Materials Resources | -11 -10 -9 -8 ----------- Run | Yrd Mat Mat Mat Matter Collected 741 | 200 118 264 159 Remotely . | . . . . Salvage Created 1139 | . 237 429 473 Parts 81 | . 14 33 34 Haulers Intercepted . | . . . . Recyclers Shooed . | . . . . Parts Field Recycled . | . . . . Retrieved Matter . | . . . . Parts Self-Destructed . | . . . . Prevented . | . . . . Kills | -11 -10 -9 -8 ------- Run | Yrd Mat Mat Mat Combat Hostiles Destroyed 29 | . 7 12 10 Melee 4 | . . . 4 Guns 25 | . 7 12 6 Classes Destroyed 5 | . 2 1 2 Builder 1 | . . . 1 Swarmer 9 | . 3 4 2 Grunt 14 | . 4 5 5 Sentry 5 | . . 3 2 Specialist 1 | . . . 1 Best Kill Streak 5 | . 3 5 5 Combat Bots Only 5 | . 3 5 5 Max Kills in Single Turn 1 | . 1 1 1 Gunslinging . | . . . . Exploded . | . . . . Melee 1 | . . . 1 Uniques/NPCs Destroyed . | . . . . Combat | -11 -10 -9 -8 -------- Run | Yrd Mat Mat Mat Hostile Shots Fired 262 | . 48 64 150 Missed 70 | . 13 17 40 Damage Taken 2777 | . 370 583 1824 Core 798 | . 54 192 552 Absorbed by Shields . | . . . . Redirected to Shielding 58 | . . . 58 Core Remaining (%) 76 | 100 78 52 . Volleys Fired 92 | . 31 30 31 Largest 2 | . 2 2 2 Hottest 106 | . 70 73 106 Shots Fired 161 | . 47 58 56 Gun 158 | . 47 58 53 Cannon 3 | . . . 3 Launcher . | . . . . Special . | . . . . Kinetic 81 | . 25 30 26 Thermal 75 | . 22 28 25 Explosive . | . . . . Electromagnetic 5 | . . . 5 Robot Hit Streak 13 | . 9 13 7 Robot Miss Streak 4 | . 3 2 4 Penetration Max . | . . . . Secondary Targets 3 | . . 1 2 Max Gunslinging Chain 1 | . . 1 1 Shots Hit Robots 117 | . 31 40 46 Core Hits 54 | . 14 21 19 Critical Kills 1 | . . 1 . Critical Parts Destroyed . | . . . . Critical Strikes 6 | . . 5 1 Burn 4 | . . 4 . Destroy 1 | . . 1 . Impale 1 | . . . 1 Melee Attacks 10 | . . . 10 Impact . | . . . . Slashing . | . . . . Piercing 10 | . . . 10 Sneak Attacks . | . . . . Combat Hostiles . | . . . . Follow-up Attacks . | . . . . Damage Inflicted 1640 | . 305 504 831 Guns 1375 | . 305 504 566 Cannons 60 | . . . 60 Explosions . | . . . . Melee 205 | . . . 205 Ramming . | . . . . Kinetic 705 | . 154 271 280 Thermal 642 | . 151 233 258 Explosive . | . . . . Electromagnetic 88 | . . . 88 Impact . | . . . . Slashing . | . . . . Piercing 205 | . . . 205 Highest Corruption . | . . . . Average Corruption . | . . . . Corruption Purged . | . . . . Corruption Blocked . | . . . . Overload Shots . | . . . . Overflow Damage 33 | . . . 33 Projectiles . | . . . . Explosions . | . . . . Melee 33 | . . . 33 Knockbacks . | . . . . Impact . | . . . . Kinetic . | . . . . Secondary . | . . . . Self-Inflicted Damage . | . . . . Shots . | . . . . Rammed . | . . . . Targets Rammed . | . . . . Kicked . | . . . . Crushed . | . . . . Highest Temperature 364 | . 364 251 70 Average Temperature 124 | . 183 134 20 Received Heat Transfer 879 | . 153 231 495 Effects 6 | . 6 . . Energy Bleed 2 | . 2 . . Interference 3 | . 3 . . Matter Decay 1 | . 1 . . Siege Activations . | . . . . Robots Corrupted . | . . . . Combat Hostiles . | . . . . Parts Fried . | . . . . Impact Corruptions . | . . . . Robots Melted . | . . . . Combat Hostiles . | . . . . Parts Melted 8 | . . 7 1 Heat Transferred 2109 | . 444 999 666 Parts Sabotaged . | . . . . Parts Stolen . | . . . . Parts Stripped . | . . . . Power Chain Reactions . | . . . . Alert | -11 -10 -9 -8 ------- Run | Yrd Mat Mat Mat Peak Influence 572 | . 160 432 572 Initial 182 | . . 67 182 Average 237 | . 82 220 403 Maximum Alert Level 2 | . . 2 2 Low Security (%) 53 | . 100 54 8 Level 1 23 | . . 42 27 Level 2 22 | . . 3 64 Level 3 . | . . . . Level 4 . | . . . . Level 5 . | . . . . High Security . | . . . . Max Security . | . . . . Squads Dispatched 3 | . 1 . 2 Investigation 1 | . 1 . . Extermination . | . . . . Reinforcement 2 | . . . 2 Assault . | . . . . Garrison . | . . . . Intercept . | . . . . Searches Triggered . | . . . . Construction Impeded . | . . . . Haulers Reinforced . | . . . . Active Scanning Responses . | . . . . Cargo Convoy Interrupts . | . . . . Stealth | -11 -10 -9 -8 --------- Run | Yrd Mat Mat Mat Distress Signals 2 | . . . 2 Communications Jammed . | . . . . Distress Signals . | . . . . Times Spotted 50 | . 9 14 27 Peak Tracking Total 13 | . 5 7 13 Tactical Retreats 5 | . . 1 4 Traps | -11 -10 -9 -8 ------- Run | Yrd Mat Mat Mat Traps Triggered 1 | . 1 . . Indirectly . | . . . . Trap Hack Attempts . | . . . . Triggered . | . . . . Disarmed . | . . . . Reprogrammed . | . . . . Reused . | . . . . Traps Extracted . | . . . . Installed . | . . . . Triggered . | . . . . Machines | -11 -10 -9 -8 ---------- Run | Yrd Mat Mat Mat Machines Disabled 1 | . . . 1 Max in Single Turn 1 | . . . 1 Machines Repaired . | . . . . Machines Dismantled . | . . . . Machines Sabotaged . | . . . . Overloaded Fab Kills . | . . . . Hacking | -11 -10 -9 -8 --------- Run | Yrd Mat Mat Mat Machines Accessed 5 | . . 1 4 Terminals 5 | . . 1 4 Fabricators . | . . . . Repair Stations . | . . . . Recycling Units . | . . . . Scanalyzers . | . . . . Garrison Access . | . . . . Total Hacks 5 | . . 1 4 Successful 2 | . . . 2 Failed 3 | . . 1 2 Catastrophic 1 | . . 1 . Database Lockouts . | . . . . Manual . | . . . . Terminals 5 | . . 1 4 Fabricators . | . . . . Repair Stations . | . . . . Recycling Units . | . . . . Scanalyzers . | . . . . Garrison Access . | . . . . Terminal Hacks 2 | . . . 2 Emergency Access Points 1 | . . . 1 Zone Layout 1 | . . . 1 Fabricator Hacks . | . . . . Repair Station Hacks . | . . . . Recycling Unit Hacks . | . . . . Scanalyzer . | . . . . Garrison Access Hacks . | . . . . Unauthorized Hacks . | . . . . Terminals . | . . . . Fabricators . | . . . . Repair Stations . | . . . . Recycling Units . | . . . . Scanalyzers . | . . . . Garrison Access . | . . . . Data Cores Recovered . | . . . . Used . | . . . . Hacking Detections 3 | . . 1 2 Full Trace Events . | . . . . Feedback Events . | . . . . Feedback Blocked . | . . . . Robot Schematics Acquired . | . . . . Robots Built . | . . . . Authchips . | . . . . Time . | . . . . Total Robot Build Rating . | . . . . Part Schematics Acquired . | . . . . Parts Built . | . . . . Authchips . | . . . . Time . | . . . . Total Part Build Rating . | . . . . Parts Repaired . | . . . . Time . | . . . . Parts Recycled . | . . . . Recycled Matter . | . . . . Retrieved Matter . | . . . . Retrieved Components . | . . . . Parts Scanalyzed . | . . . . Part Schematics Acquired . | . . . . Parts Damaged . | . . . . Bothacking | -11 -10 -9 -8 ------------ Run | Yrd Mat Mat Mat Used RIF Installer . | . . . . Robots Hacked . | . . . . Non-combat . | . . . . Combat . | . . . . Robot Hacks Applied . | . . . . Relay Couplers Released . | . . . . Fabnet Peak Effective % . | . . . . Robots Rewired . | . . . . Allies Hacked . | . . . . Hacks Repelled . | . . . . Allies | -11 -10 -9 -8 -------- Run | Yrd Mat Mat Mat Total Allies . | . . . . Largest Group . | . . . . Highest-Rated Group . | . . . . Highest-Rated Ally . | . . . . Total Orders . | . . . . Ally Attacks . | . . . . Total Damage . | . . . . Kills . | . . . . Allies Corrupted . | . . . . Allies Melted . | . . . . Intel | -11 -10 -9 -8 ------- Run | Yrd Mat Mat Mat Robot Analysis Total . | . . . . Derelict Logs Recovered . | . . . . Drone Launches . | . . . . Drone Recoveries . | . . . . Exploration | -11 -10 -9 -8 ------------- Run | Yrd Mat Mat Mat Turns Passed 784 | . 248 275 261 Spaces Moved 768 | 1 150 309 308 Core . | . . . . Treads . | . . . . Legs 44 | 1 43 . . Wheels 107 | . 107 . . Hover . | . . . . Flight 617 | . . 309 308 Fastest Speed 26 | 120 90 27 26 Average Speed 53 | 120 100 47 35 Slowest Speed 280 | 120 120 114 280 Overloaded Moves . | . . . . Propulsion Burnouts . | . . . . Robots Hopped 9 | . . 5 4 Cave-ins Triggered . | . . . . Exploration Rate (%) 27 | 2 34 30 43 Regions Visited 3 Branch Regions . Pre-discovered Areas . | . . . . Known Exits Taken . | . . . . Unknown Exits Taken 3 | 1 1 1 . Scrap Searched . | . . . . Spaces Dug . | . . . . Terrain Destroyed . | . . . . Melee . | . . . . Projectile . | . . . . AOE . | . . . . Terrain Rammed . | . . . . Walls Destroyed . | . . . . Machines Disabled . | . . . . Actions | -11 -10 -9 -8 --------- Run | Yrd Mat Mat Mat Total 970 | . 207 381 382 Wait 11 | . 6 2 3 Move 747 | . 149 298 300 Hop 9 | . . 5 4 Pick Up 28 | . 6 11 11 Fast Attach 9 | . 2 1 6 Attach 16 | . 1 4 11 Detach . | . . . . Swap 20 | . 5 13 2 Drop 28 | . 7 17 4 Fire 92 | . 31 30 31 Melee 10 | . . . 10 Ram . | . . . . Kick . | . . . . Crush . | . . . . Escape Stasis . | . . . . Rewire . | . . . . Trap . | . . . . Miscellaneous . | . . . . Route ------- -11/Scrapyard -10/Materials -9/Materials -8/Materials (discovered 1 exit: [*Fac]) History --------- Turn | Location | Event 1 | -11/Scrapyard | Discovered new exit (range 0) 1 | -11/Scrapyard | Entered Materials 246 | -10/Materials | Discovered new exit (range 4) 249 | -10/Materials | Entered another Materials area 249 | -9/Materials | Evolved 2 slots: Propulsion x2 521 | -9/Materials | Discovered new exit (range 6) 524 | -9/Materials | Entered another Materials area 524 | -8/Materials | Evolved 2 slots: Propulsion x1, Utility x1 651 | -8/Materials | Core integrity fell below 50% 679 | -8/Materials | Lost 12 parts (2p5n2u3w) 750 | -8/Materials | Discovered new exit (range 5) 778 | -8/Materials | Core integrity fell below 20% 785 | -8/Materials | Destroyed by Y-45 Defender with Heavy Assault Rifle Last Messages --------------- 00765_ K-01 Serf collects debris. 00766_ Acquired 11 matter. 00768_ K-01 Serf collects debris. 00768_ Acquired 11 matter. 00769_ Heat Sink destroyed. 00769_ Hvy. EM Shotgun destroyed. 00769_ Critical hit (Blast). 00769_ Knocked back. 00772_ Cesium-ion Thruster destroyed. 00772_ R-06 Scavenger collects Corrupted Shotgun. 00773_ K-01 Serf collects debris. 00775_ R-06 Scavenger collects Imp. Heat Sink. 00776_ Flight Unit destroyed. 00776_ K-01 Serf collects debris. 00777_ U-05 Engineer builds a Wall. 00779_ K-01 Serf collects debris. 00781_ U-05 Engineer builds a Wall. 00782_ K-01 Serf collects debris. 00782_ H-61 Shepherd misfires. 00784_ Lgt. Cannon destroyed. Map ----- +----------------------------------------------------+ | | | | | | | | | | | | | | | | | | | | | | | | | | | | | | | | | #????????????????????????????????????????????????? | | #????????????????????????????????????????????????? | | #????????????????????????????????????????????????? | | #????????????????????????????????????????????????? | | #????????????????????????????????????????????????? | | ?????????????##########??????????????????????????? | | ?????????????# % #####??????????????????????? | | ############## T # %#??????????????????????? | | + !/ #%H ##?????????????????????? | | ########### #u @;#?????????????????????? | | " #?##?????#" k ws%%Y##?????????????????????? | | " #? ?????## "" # x ???????????????? | | " #? "??????# """ # ????????????? | | ## "??????# """ # ???????????? | | ## """??#?# ########### #??????????? | | # ## #?#+########???????????? #???????????? | | # ## """ #?# ??????????????????????#???????????? | | # ## """ #?# ??????????????????????????????????? | | # ## """ #?# ??????????????????????????????????? | | # ## #?##??????????????????????????????????? | | !| # """ #?????????????????????????????????????? | | ![% # """ #?????????????????????????????????????? | | % ==+ """ #?????????????????????????????????????? | | [ [# #?????????????????????????????????????? | | #+##########?????????????????????????????????????? | | *%%!*! #?????????????????????????????????????????? | | ="==[ #?????????????????????????????????????????? | | """!= #?????????????????????????????????????????? | | "" = #?????????????????????????????????????????? | | """ #?????????????????????????????????????????? | | "" #?????????????????????????????????????????? | | """ #?????????????+???????????????????????????? | | """ #?????????????????????????????????????????? | | """ #?????????????????????????????????????????? | +----------------------------------------------------+ Best States ------------- Heat Dissipation 41 Energy Generation 14 Energy Capacity 265 Matter Stores 300 Matter Capacity 300 Sight Range 16 Robot Scan Range 14 Terrain Scan Density 10 Armor Coverage 150 Propulsion Shielding 33 Evasion (%) 64 Item Schematics ----------------- None Robot Schematics ------------------ None Fabricated ------------ Nothing Alien Tech Used ----------------- None Achievements -------------- None Challenges ------------ None Game ------ Seed ChargeConstructTorch Manual? 0 Play Time 00:26:04 Cumulative 99.3 hours Start 2024.08.06 @ 01:00:45 End 2024.08.06 @ 01:28:32 Sessions 1 Manual Loads 0 Difficulty Rogue Special Mode None Game No. 54 Rogue 54 Adventurer 0 Explorer 0 Win Type - Total 1 Types 1/0/0/0/0/0/0/0/0 Lore% 31 Gallery% 50 Achievement% 36 Wizard Run 0 Options --------- Layout 0 ASCII 0 Keyboard 0 Movement Mouse Keybinds 0 Fullscreen 1 Font 18/SmallcapsGlow Map View 76x50 Zoom Use 0% Tactical HUD 1 Map Filters NONE Filters NONE Steam 1 RUN: 9deeab26-3943-4306-ac41-fc2463cadde7